fUSD/lending_fUSD_20240117
["ID","MTS","AMOUNT","RATE_DAILY","PERIOD"]
[311920749,1705500664063,-500.0,0.00022739,2]
[311920750,1705500664073,-500.0,0.00022739,2]
[311920751,1705500664082,-500.0,0.00022739,2]
[311920752,1705500664090,-500.0,0.00022739,2]
[311920753,1705500664100,-549.85,0.00022739,2]
[311920754,1705500664109,-697.89,0.00022739,2]
[311920755,1705500664117,-504.62,0.00022739,2]
[311920756,1705500664127,-171.77,0.00022739,2]
[311920757,1705500664136,-500.0,0.00022739,2]
[311920758,1705500664145,-582.98,0.00022739,2]
[311920759,1705500664154,-500.0,0.00022739,2]
[311920760,1705500664163,-500.0,0.00022739,2]
[311920761,1705500664173,-500.0,0.00022739,2]
[311920762,1705500664182,-500.0,0.00022739,2]
[311920763,1705500664194,-500.0,0.00022739,2]
[311920764,1705500664203,-500.0,0.00022739,2]
[311920765,1705500664212,-500.0,0.00022739,2]
[311920766,1705500664221,-500.0,0.00022739,2]
[311920767,1705500664230,-851.76,0.00022739,2]
[311920768,1705500664239,-500.0,0.00022739,2]
[311920769,1705500664249,-581.15,0.00022739,2]
[311920770,1705500664259,-2326.95,0.00022739,2]
[311920771,1705500664269,-500.0,0.00022739,2]
[311920772,1705500664279,-280.76,0.00022739,2]
[311920773,1705500664289,-500.0,0.00022739,2]
[311920774,1705500664298,-500.0,0.00022739,2]
[311920775,1705500664307,-500.0,0.00022739,2]
[311920776,1705500664316,-648.43,0.00022739,2]
[311920777,1705500664326,-719.66,0.00022739,2]
[311920778,1705500664336,-957.33,0.00022739,2]
[311920779,1705500664345,-500.0,0.00022739,2]
[311920780,1705500664355,-1329.33,0.00022739,2]
[311920781,1705500664364,-1070.2,0.00022739,2]
[311920782,1705500664374,-500.0,0.00022739,2]
[311920783,1705500664383,-500.0,0.00022739,2]
[311920784,1705500664393,-500.0,0.00022739,2]
[311920785,1705500664403,-500.0,0.00022739,2]
[311920786,1705500664412,-500.0,0.00022739,2]
[311920787,1705500664421,-500.0,0.00022739,2]
[311920788,1705500664432,-701.53,0.00022739,2]
[311920789,1705500664443,-542.56,0.00022739,2]
[311920790,1705500664453,-2426.12,0.00022739,5]
[311920791,1705500664463,-500.0,0.00022739,2]
[311920792,1705500664472,-4099.87,0.00022739,2]
[311920793,1705500664483,-931.48,0.00022739,2]
[311920794,1705500664493,-500.0,0.00022739,2]
[311920795,1705500664504,-500.0,0.00022739,2]
[311920796,1705500664513,-500.0,0.00022739,2]
[311920797,1705500664521,-500.0,0.00022739,2]
[311920798,1705500664531,-500.0,0.00022739,2]
[311920799,1705500664540,-500.0,0.00022739,2]
[311920800,1705500664549,-500.0,0.00022739,2]
[311920801,1705500664558,-500.0,0.00022739,2]
[311920802,1705500664567,-165.76,0.00022739,2]
[311920803,1705500664577,-500.0,0.00022739,2]
[311920804,1705500664587,-500.0,0.00022739,2]
[311920805,1705500664597,-500.0,0.00022739,2]
[311920806,1705500664607,-500.0,0.00022739,2]
[311920807,1705500664618,-500.0,0.00022739,2]
[311920808,1705500664629,-500.0,0.00022739,2]
[311920809,1705500664640,-500.0,0.00022739,2]
[311920810,1705500664649,-500.0,0.00022739,2]
[311920811,1705500664659,-500.0,0.00022739,2]
[311920812,1705500664669,-574.27,0.00022739,2]
[311920813,1705500664679,-2043.77,0.00022739,5]
[311920814,1705500664688,-500.0,0.00022739,2]
[311920815,1705500664699,-500.0,0.00022739,2]
[311920816,1705500664711,-500.0,0.00022739,2]
[311920817,1705500664720,-500.0,0.00022739,2]
[311920818,1705500664730,-483.11578809,0.00022739,2]
[311920819,1705500664739,-500.0,0.00022739,2]
[311920820,1705500664749,-185.51,0.00022739,2]
[311920821,1705500664759,-500.0,0.00022739,2]
[311920822,1705500664769,-500.0,0.00022739,2]
[311920823,1705500664779,-850.84,0.00022739,2]
[311920824,1705500664790,-500.0,0.00022739,2]
[311920825,1705500664800,-342.85,0.00022739,2]
[311920826,1705500664809,-531.21,0.00022739,2]
[311920827,1705500664819,-959.51,0.00022739,2]
[311920828,1705500664828,-500.0,0.00022739,2]
[311920829,1705500664838,-500.0,0.00022739,2]
[311920830,1705500664848,-1073.97,0.00022739,2]
[311920831,1705500664860,-500.0,0.00022739,2]
[311920832,1705500664870,-478.34,0.00022739,2]
[311920833,1705500664880,-500.0,0.00022739,2]
[311920834,1705500664890,-500.0,0.00022739,2]
[311920835,1705500664899,-500.0,0.00022739,2]
[311920836,1705500664909,-500.0,0.00022739,2]
[311920837,1705500664919,-500.0,0.00022739,2]
[311920838,1705500664928,-500.0,0.00022739,2]
[311920839,1705500664938,-500.0,0.00022739,2]
[311920840,1705500664949,-500.0,0.00022739,2]
[311920841,1705500664958,-500.0,0.00022739,2]
[311920842,1705500664967,-356.1,0.00022739,2]
[311920843,1705500664976,-500.0,0.00022739,2]
[311920844,1705500664984,-500.0,0.00022739,2]
[311920845,1705500664994,-177.09,0.00022739,2]
[311920846,1705500665003,-207.35,0.00022739,2]
[311920847,1705500665012,-500.0,0.00022739,2]
[311920848,1705500665022,-256.67,0.00022739,2]
[311920849,1705500665031,-500.0,0.00022739,2]
[311920850,1705500665041,-500.0,0.00022739,2]
[311920851,1705500665051,-500.0,0.00022739,2]
[311920852,1705500665060,-500.0,0.00022739,2]
[311920853,1705500665070,-480.46,0.00022739,2]
[311920854,1705500665079,-500.0,0.00022739,2]
[311920855,1705500665089,-500.0,0.00022739,2]
[311920856,1705500665099,-500.0,0.00022739,2]
[311920857,1705500665108,-500.0,0.00022739,2]
[311920858,1705500665118,-290.64,0.00022739,2]
[311920859,1705500665128,-500.0,0.00022739,2]
[311920860,1705500665138,-314.34,0.00022739,2]
[311920861,1705500665148,-500.0,0.00022739,2]
[311920862,1705500665157,-200.36,0.00022739,2]
[311920863,1705500665167,-539.24,0.00022739,2]
[311920864,1705500665177,-500.0,0.00022739,2]
[311920865,1705500665186,-231.84,0.00022739,2]
[311920866,1705500665198,-150.0,0.00022759,2]
[311920867,1705500665209,-256.83,0.00022759,2]
[311920868,1705500665219,-156.0,0.00022766,2]
[311920869,1705500665228,-156.0,0.00022766,2]
[311920870,1705500665237,-500.0,0.00022798,2]
[311920871,1705500665247,-50000.0,0.000228,2]
[311920872,1705500665257,-500.0,0.000228,2]
[311920873,1705500665266,-500.0,0.00022802,2]
[311920874,1705500665275,-500.0,0.00022804,2]
[311920875,1705500665284,-500.0,0.00022806,2]
[311920876,1705500665293,-200.0,0.00022806,2]
[311920877,1705500665302,-500.0,0.00022808,2]
[311920878,1705500665311,-500.0,0.0002281,2]
[311920879,1705500665320,-500.0,0.00022811,2]
[311920880,1705500665329,-500.0,0.00022813,2]
[311920881,1705500665338,-500.0,0.00022815,2]
[311920882,1705500665348,-200.0,0.00022815,2]
[311920883,1705500665357,-193.48,0.00022822,2]
[311920884,1705500665367,-150.0,0.00022855,2]
[311920885,1705500665376,-150.0,0.0002287,2]
[311920886,1705500665385,-1000.0,0.00022885,2]
[311920887,1705500665395,-547.1711,0.00022885,2]
[311920888,1705500665404,-500.0,0.00022885,2]
[311920889,1705500665414,-500.0,0.00022885,2]
[311920890,1705500665423,-500.0,0.00022885,2]
[311920891,1705500665433,-500.0,0.00022885,2]
[311920892,1705500665442,-500.0,0.00022885,2]
[311920893,1705500665452,-500.0,0.00022885,2]
[311920894,1705500665461,-500.0,0.00022885,2]
[311920895,1705500665471,-500.0,0.00022885,2]
[311920896,1705500665480,-500.0,0.00022885,2]
[311920897,1705500665490,-500.0,0.00022885,2]
[311920898,1705500665500,-500.0,0.00022885,2]
[311920899,1705500665510,-500.0,0.00022885,2]
[311920900,1705500665519,-500.0,0.00022885,2]
[311920901,1705500665528,-500.0,0.00022885,2]
[311920902,1705500665537,-500.0,0.00022885,2]
[311920903,1705500665547,-500.0,0.00022885,2]
[311920904,1705500665556,-500.0,0.00022885,2]
[311920905,1705500665565,-500.0,0.00022885,2]
[311920906,1705500665575,-500.0,0.00022885,2]
[311920907,1705500665584,-647.0686,0.00022885,2]
[311920908,1705500665593,-150.0,0.00022895,2]
[311920909,1705500665603,-180.28886258,0.00022896,2]
[311920910,1705500665612,-256.83,0.00022896,2]
[311920911,1705500665624,-300.0,0.00022899,2]
[311920912,1705500665634,-746.92,0.00022899,2]
[311920913,1705500665643,-5000.0,0.000229,2]
[311920914,1705500665652,-39825.7225,0.000229,2]
[311920915,1705500665661,-100000.0,0.000229,2]
[311920916,1705500665672,-166.87976474,0.000229,2]
[311920917,1705500665681,-166.87976454,0.000229,2]
[311920918,1705500665692,-166.87976454,0.000229,2]
[311920919,1705500665702,-166.87976454,0.000229,2]
[311920920,1705500665712,-166.87976454,0.000229,2]
[311920921,1705500665721,-166.87976454,0.000229,2]
[311920922,1705500665731,-166.87976454,0.000229,2]
[311920923,1705500665741,-166.87976454,0.000229,2]
[311920924,1705500665750,-166.87976454,0.000229,2]
[311920925,1705500665759,-166.87976454,0.000229,2]
[311920926,1705500665769,-166.87976454,0.000229,2]
[311920927,1705500665779,-166.87976454,0.000229,2]
[311920928,1705500665788,-166.87976454,0.000229,2]
[311920929,1705500665799,-166.87976454,0.000229,2]
[311920930,1705500665808,-166.87976454,0.000229,2]
[311920931,1705500665818,-166.87976454,0.000229,2]
[311920932,1705500665827,-166.87976454,0.000229,2]
[311920933,1705500665837,-166.87976454,0.000229,2]
[311920934,1705500665846,-166.87976454,0.000229,2]
[311920935,1705500665855,-166.87976454,0.000229,2]
[311920936,1705500665864,-166.87976454,0.000229,2]
[311920937,1705500665874,-166.87976454,0.000229,2]
[311920938,1705500665883,-166.87976454,0.000229,2]
[311920939,1705500665893,-166.87976454,0.000229,2]
[311920940,1705500665902,-166.87976454,0.000229,2]
[311920941,1705500665911,-166.87976454,0.000229,2]
[311920942,1705500665921,-166.87976454,0.000229,2]
[311920943,1705500665930,-166.87976454,0.000229,2]
[311920944,1705500665939,-198.58536633,0.000229,2]
[311920945,1705500665950,-1017.52133159,0.000229,2]
[311920946,1705500665959,-2190.84182032,0.000229,2]
[311920947,1705500665969,-165.24089768,0.000229,6]
[311920948,1705500665978,-428.78370552,0.000229,2]
[311920949,1705500665988,-959.93996968,0.000229,2]
[311920950,1705500665997,-150.0,0.00022957,2]
[311920951,1705500666007,-300.0,0.00022978,2]
[311920952,1705500666017,-746.92,0.00022979,2]
[311920953,1705500666026,-300.0,0.00022979,2]
[311920954,1705500666035,-300.0,0.00022979,2]
[311920955,1705500666045,-260831.62650883,0.0002298,2]
[311920956,1705500666054,-2454.6707705,0.00022997,2]
[311920957,1705500666063,-55064.458289,0.00022997,2]
[311920958,1705500666072,-602.4251554,0.00022997,2]
[311920959,1705500666081,-604.3532846,0.00022999,2]
[311920960,1705500666090,-3295.67153385,0.00022999,2]
[311920961,1705500666100,-300.0,0.00022999,2]
[311920962,1705500666109,-300.0,0.00022999,2]
[311920963,1705500666118,-324.79163949,0.00022999,2]
[311920964,1705500666127,-746.92,0.00022999,2]
[311920965,1705500666136,-746.92,0.00022999,2]
[311920966,1705500666146,-746.92,0.00022999,2]
[311920967,1705500666155,-746.92,0.00022999,2]
[311920968,1705500666165,-746.92,0.00022999,2]
[311920969,1705500666174,-746.92,0.00022999,2]
[311920970,1705500666183,-746.92,0.00022999,2]
[311920971,1705500666192,-747.06,0.00022999,2]
[311920972,1705500666201,-161.16567161,0.00022999,2]
[311920973,1705500666211,-300.0,0.00022999,2]
[311920974,1705500666221,-300.0,0.00022999,2]
[311920975,1705500666230,-300.0,0.00022999,2]
[311920976,1705500666240,-300.0,0.00022999,2]
[311920977,1705500666250,-300.0,0.00022999,2]
[311920978,1705500666259,-300.0,0.00022999,2]
[311920979,1705500666268,-3735984.69163784,0.00023,2]
[311920980,1705500666856,-206364.88300689,0.00023,2]
[311920981,1705500666866,-510258.19269038,0.00023,2]
[311920982,1705500666877,-13791.77379008,0.00023,2]
[311920983,1705500666887,-1449448.77483992,0.00023,2]
[311920984,1705500666897,-200.0,0.00023,2]
[311920985,1705500666906,-1169.07,0.00023012,2]
[311920986,1705500666916,-629.58140798,0.00023013,2]
[311920987,1705500666925,-500.0,0.00023013,2]
[311920988,1705500666935,-500.0,0.00023013,2]
[311920989,1705500666945,-500.0,0.00023013,2]
[311920990,1705500666955,-769.26,0.00023013,2]
[311920991,1705500666965,-500.0,0.00023013,2]
[311920992,1705500666974,-500.0,0.00023013,2]
[311920993,1705500666985,-500.0,0.00023013,2]
[311920994,1705500666994,-500.0,0.00023013,2]
[311920995,1705500667004,-500.0,0.00023013,2]
[311920996,1705500667014,-500.0,0.00023013,2]
[311920997,1705500667024,-500.0,0.00023013,2]
[311920998,1705500667034,-500.0,0.00023013,2]
[311920999,1705500667044,-500.0,0.00023013,2]
[311921000,1705500667055,-500.0,0.00023013,2]
[311921001,1705500667064,-206.81455167,0.00023013,2]
[311921002,1705500667074,-295.72,0.00023013,2]
[311921003,1705500667083,-500.0,0.00023013,2]
[311921004,1705500667093,-500.0,0.00023013,2]
[311921005,1705500667102,-402.94,0.00023013,2]
[311921006,1705500667113,-500.0,0.00023013,2]
[311921007,1705500667122,-500.0,0.00023013,2]
[311921008,1705500667132,-198.19,0.00023013,2]
[311921009,1705500667141,-617.36,0.00023013,2]
[311921010,1705500667151,-500.0,0.00023013,2]
[311921011,1705500667161,-407.75,0.00023013,2]
[311921012,1705500667170,-500.0,0.00023013,2]
[311921013,1705500667179,-333.69,0.00023013,2]
[311921014,1705500667190,-500.0,0.00023013,2]
[311921015,1705500667200,-622.61,0.00023013,2]
[311921016,1705500667209,-500.0,0.00023013,2]
[311921017,1705500667219,-500.0,0.00023013,2]
[311921018,1705500667229,-500.0,0.00023013,2]
[311921019,1705500667239,-594.95,0.00023013,2]
[311921020,1705500667250,-150.0,0.00023013,2]
[311921021,1705500667259,-500.0,0.00023013,2]
[311921022,1705500667269,-500.0,0.00023013,2]
[311921023,1705500667279,-349.64,0.00023013,2]
[311921024,1705500667289,-500.0,0.00023013,2]
[311921025,1705500667299,-255.98,0.00023013,2]
[311921026,1705500667310,-500.0,0.00023013,2]
[311921027,1705500667320,-500.0,0.00023013,2]
[311921028,1705500667330,-502.86,0.00023013,2]
[311921029,1705500667340,-346.57,0.00023013,2]
[311921030,1705500667350,-500.0,0.00023013,2]
[311921031,1705500667360,-261.49,0.00023013,2]
[311921032,1705500667370,-647.02,0.00023013,2]
[311921033,1705500667379,-500.0,0.00023013,2]
[311921034,1705500667389,-371.43,0.00023013,2]
[311921035,1705500667399,-500.0,0.00023013,2]
[311921036,1705500667408,-1061.96,0.00023013,2]
[311921037,1705500667418,-606.99,0.00023013,2]
[311921038,1705500667428,-500.0,0.00023013,2]
[311921039,1705500667437,-177.74,0.00023013,2]
[311921040,1705500667448,-500.0,0.00023013,2]
[311921041,1705500667457,-500.0,0.00023013,2]
[311921042,1705500667467,-500.0,0.00023013,2]
[311921043,1705500667476,-500.0,0.00023013,2]
[311921044,1705500667486,-500.0,0.00023013,2]
[311921045,1705500667495,-500.0,0.00023013,2]
[311921046,1705500667505,-736.42,0.00023013,2]
[311921047,1705500667517,-500.0,0.00023013,2]
[311921048,1705500667526,-500.0,0.00023013,2]
[311921049,1705500667535,-229.74,0.00023013,2]
[311921050,1705500667545,-500.0,0.00023013,2]
[311921051,1705500667555,-154.76,0.00023013,2]
[311921052,1705500667566,-500.0,0.00023013,2]
[311921053,1705500667576,-524.94,0.00023013,2]
[311921054,1705500667586,-175.8,0.00023013,2]
[311921055,1705500667596,-525.22,0.00023013,2]
[311921056,1705500667605,-500.0,0.00023013,2]
[311921057,1705500667615,-659.38,0.00023013,2]
[311921058,1705500667625,-635.82,0.00023013,2]
[311921059,1705500667637,-500.0,0.00023013,2]
[311921060,1705500667646,-500.0,0.00023013,2]
[311921061,1705500667655,-500.0,0.00023013,2]
[311921062,1705500667667,-500.0,0.00023013,2]
[311921063,1705500667677,-500.0,0.00023013,2]
[311921064,1705500667687,-483.72,0.00023013,2]
[311921065,1705500667699,-500.0,0.00023013,2]
[311921066,1705500667709,-500.0,0.00023013,2]
[311921067,1705500667719,-500.0,0.00023013,2]
[311921068,1705500667730,-500.0,0.00023013,2]
[311921069,1705500667740,-500.0,0.00023013,2]
[311921070,1705500667749,-697.89,0.00023013,2]
[311921071,1705500667761,-500.0,0.00023013,2]
[311921072,1705500667771,-500.0,0.00023013,2]
[311921073,1705500667781,-500.0,0.00023013,2]
[311921074,1705500667790,-500.0,0.00023013,2]
[311921075,1705500667800,-500.0,0.00023013,2]
[311921076,1705500667809,-500.0,0.00023013,2]
[311921077,1705500667819,-500.0,0.00023013,2]
[311921078,1705500667828,-851.76,0.00023013,2]
[311921079,1705500667838,-500.0,0.00023013,2]
[311921080,1705500667848,-2326.95,0.00023013,2]
[311921081,1705500667859,-500.0,0.00023013,2]
[311921082,1705500667869,-500.0,0.00023013,2]
[311921083,1705500667879,-500.0,0.00023013,2]
[311921084,1705500667889,-500.0,0.00023013,2]
[311921085,1705500667899,-648.43,0.00023013,2]
[311921086,1705500667909,-719.66,0.00023013,2]
[311921087,1705500667919,-957.33,0.00023013,2]
[311921088,1705500667929,-1329.33,0.00023013,2]
[311921089,1705500667939,-1070.2,0.00023013,2]
[311921090,1705500667951,-500.0,0.00023013,2]
[311921091,1705500667961,-500.0,0.00023013,2]
[311921092,1705500667972,-500.0,0.00023013,2]
[311921093,1705500667983,-500.0,0.00023013,2]
[311921094,1705500667994,-500.0,0.00023013,2]
[311921095,1705500668005,-500.0,0.00023013,2]
[311921096,1705500668015,-701.53,0.00023013,2]
[311921097,1705500668025,-2426.12,0.00023013,5]
[311921098,1705500668036,-500.0,0.00023013,2]
[311921099,1705500668046,-4099.87,0.00023013,2]
[311921100,1705500668057,-931.48,0.00023013,2]
[311921101,1705500668066,-500.0,0.00023013,2]
[311921102,1705500668076,-500.0,0.00023013,2]
[311921103,1705500668087,-500.0,0.00023013,2]
[311921104,1705500668096,-500.0,0.00023013,2]
[311921105,1705500668106,-500.0,0.00023013,2]
[311921106,1705500668116,-500.0,0.00023013,2]
[311921107,1705500668125,-500.0,0.00023013,2]
[311921108,1705500668135,-500.0,0.00023013,2]
[311921109,1705500668145,-500.0,0.00023013,2]
[311921110,1705500668154,-500.0,0.00023013,2]
[311921111,1705500668164,-469.2,0.00023013,2]
[311921112,1705500668174,-500.0,0.00023013,2]
[311921113,1705500668183,-500.0,0.00023013,2]
[311921114,1705500668195,-500.0,0.00023013,2]
[311921115,1705500668206,-180.16,0.00023013,2]
[311921116,1705500668216,-500.0,0.00023013,2]
[311921117,1705500668226,-500.0,0.00023013,2]
[311921118,1705500668236,-574.27,0.00023013,2]
[311921119,1705500668246,-2043.77,0.00023013,5]
[311921120,1705500668257,-500.0,0.00023013,2]
[311921121,1705500668267,-500.0,0.00023013,2]
[311921122,1705500668277,-500.0,0.00023013,2]
[311921123,1705500668286,-500.0,0.00023013,2]
[311921124,1705500668296,-283.44,0.00023013,2]
[311921125,1705500668306,-500.0,0.00023013,2]
[311921126,1705500668316,-850.84,0.00023013,2]
[311921127,1705500668326,-500.0,0.00023013,2]
[311921128,1705500668335,-500.0,0.00023013,2]
[311921129,1705500668345,-531.21,0.00023013,2]
[311921130,1705500668354,-959.51,0.00023013,2]
[311921131,1705500668364,-500.0,0.00023013,2]
[311921132,1705500668374,-500.0,0.00023013,2]
[311921133,1705500668383,-1073.97,0.00023013,2]
[311921134,1705500668393,-500.0,0.00023013,2]
[311921135,1705500668403,-500.0,0.00023013,2]
[311921136,1705500668413,-500.0,0.00023013,2]
[311921137,1705500668423,-500.0,0.00023013,2]
[311921138,1705500668432,-500.0,0.00023013,2]
[311921139,1705500668442,-500.0,0.00023013,2]
[311921140,1705500668454,-500.0,0.00023013,2]
[311921141,1705500668464,-297.82,0.00023013,2]
[311921142,1705500668473,-500.0,0.00023013,2]
[311921143,1705500668484,-500.0,0.00023013,2]
[311921144,1705500668494,-411.31,0.00023013,2]
[311921145,1705500668504,-218.02,0.00023013,2]
[311921146,1705500668514,-500.0,0.00023013,2]
[311921147,1705500668524,-500.0,0.00023013,2]
[311921148,1705500668534,-500.0,0.00023013,2]
[311921149,1705500668544,-197.89,0.00023013,2]
[311921150,1705500668553,-646.37,0.00023013,2]
[311921151,1705500668563,-500.0,0.00023013,2]
[311921152,1705500668573,-500.0,0.00023013,2]
[311921153,1705500668583,-500.0,0.00023013,2]
[311921154,1705500668593,-328.6,0.00023013,2]
[311921155,1705500668603,-500.0,0.00023013,2]
[311921156,1705500668612,-500.0,0.00023013,2]
[311921157,1705500668622,-539.24,0.00023013,2]
[311921158,1705500668633,-158.64,0.00023014,2]
[311921159,1705500668643,-193.48,0.00023014,2]
[311921160,1705500668653,-166.87976454,0.00023024,2]
[311921161,1705500668663,-282.16126424,0.00023033,2]
[311921162,1705500668672,-159.48,0.00023045,2]
[311921163,1705500668682,-150.0,0.00023067,2]
[311921164,1705500668691,-150.0,0.00023086,2]
[311921165,1705500668702,-150.0,0.00023116,2]
[311921166,1705500668712,-576.13522364,0.00023118,2]
[311921167,1705500668723,-159.48,0.00023157,2]
[311921168,1705500668733,-167.34,0.00023173,2]
[311921169,1705500668742,-500.0,0.00023181,2]
[311921170,1705500668752,-150.0,0.00023212,2]
[311921171,1705500668761,-150.0,0.00023215,2]
[311921172,1705500668771,-166.87976454,0.00023219,2]
[311921173,1705500668780,-150.0,0.00023232,2]
[311921174,1705500668790,-2000.0,0.00023245,2]
[311921175,1705500668800,-150.0,0.00023249,2]
[311921176,1705500668809,-159.48,0.00023268,2]
[311921177,1705500668819,-150.0,0.00023271,2]
[311921178,1705500668829,-1025.2617308,0.00023284,2]
[311921179,1705500668838,-500.0,0.00023287,2]
[311921180,1705500668848,-555.96656269,0.00023287,2]
[311921181,1705500668858,-500.0,0.00023287,2]
[311921182,1705500668868,-769.26,0.00023287,2]
[311921183,1705500668877,-500.0,0.00023287,2]
[311921184,1705500668888,-328.07137166,0.00023287,2]
[311921185,1705500668897,-500.0,0.00023287,2]
[311921186,1705500668907,-500.0,0.00023287,2]
[311921187,1705500668917,-500.0,0.00023287,2]
[311921188,1705500668927,-453.26869484,0.00023287,2]
[311921189,1705500668937,-500.0,0.00023287,2]
[311921190,1705500668947,-500.0,0.00023287,2]
[311921191,1705500668957,-500.0,0.00023287,2]
[311921192,1705500668967,-500.0,0.00023287,2]
[311921193,1705500668977,-500.0,0.00023287,2]
[311921194,1705500668987,-500.0,0.00023287,2]
[311921195,1705500669233,-500.0,0.00023287,2]
[311921196,1705500669242,-500.0,0.00023287,2]
[311921197,1705500669251,-500.0,0.00023287,2]
[311921198,1705500669260,-500.0,0.00023287,2]
[311921199,1705500669270,-500.0,0.00023287,2]
[311921200,1705500669278,-410.3,0.00023287,2]
[311921201,1705500669288,-214.81,0.00023287,2]
[311921202,1705500669297,-197.71202862,0.00023287,2]
[311921203,1705500669306,-241.64,0.00023287,2]
[311921204,1705500669315,-500.0,0.00023287,2]
[311921205,1705500669324,-500.0,0.00023287,2]
[311921206,1705500669334,-500.0,0.00023287,2]
[311921207,1705500669343,-647.02,0.00023287,2]
[311921208,1705500669353,-500.0,0.00023287,2]
[311921209,1705500669362,-500.0,0.00023287,2]
[311921210,1705500669372,-1061.96,0.00023287,2]
[311921211,1705500669381,-500.0,0.00023287,2]
[311921212,1705500669390,-500.0,0.00023287,2]
[311921213,1705500669400,-622.86882145,0.00023287,2]
[311921214,1705500669409,-500.0,0.00023287,2]
[311921215,1705500669419,-500.0,0.00023287,2]
[311921216,1705500669428,-500.0,0.00023287,2]
[311921217,1705500669438,-571.15,0.00023287,2]
[311921218,1705500669448,-736.42,0.00023287,2]
[311921219,1705500669457,-500.0,0.00023287,2]
[311921220,1705500669466,-500.0,0.00023287,2]
[311921221,1705500669475,-500.0,0.00023287,2]
[311921222,1705500669485,-283.55,0.00023287,2]
[311921223,1705500669495,-525.22,0.00023287,2]
[311921224,1705500669504,-500.0,0.00023287,2]
[311921225,1705500669514,-659.38,0.00023287,2]
[311921226,1705500669523,-352.96,0.00023287,2]
[311921227,1705500669533,-500.0,0.00023287,2]
[311921228,1705500669542,-500.0,0.00023287,2]
[311921229,1705500669551,-500.0,0.00023287,2]
[311921230,1705500669561,-500.0,0.00023287,2]
[311921231,1705500669570,-500.0,0.00023287,2]
[311921232,1705500669580,-500.0,0.00023287,2]
[311921233,1705500669590,-500.0,0.00023287,2]
[311921234,1705500669600,-500.0,0.00023287,2]
[311921235,1705500669609,-465.88,0.00023287,2]
[311921236,1705500669619,-697.89,0.00023287,2]
[311921237,1705500669628,-500.0,0.00023287,2]
[311921238,1705500669642,-500.0,0.00023287,2]
[311921239,1705500669652,-500.0,0.00023287,2]
[311921240,1705500669661,-500.0,0.00023287,2]
[311921241,1705500669671,-500.0,0.00023287,2]
[311921242,1705500669682,-500.0,0.00023287,2]
[311921243,1705500669691,-500.0,0.00023287,2]
[311921244,1705500669703,-851.76,0.00023287,2]
[311921245,1705500669713,-500.0,0.00023287,2]
[311921246,1705500669722,-2326.95,0.00023287,2]
[311921247,1705500669732,-500.0,0.00023287,2]
[311921248,1705500669741,-500.0,0.00023287,2]